fUST/lending_fUST_20240713
["ID","MTS","AMOUNT","RATE_DAILY","PERIOD"]
[331895468,1720819853060,-151.0,0.00025672,2]
[331895469,1720819853070,-219.19348393,0.00025683,2]
[331895470,1720819853082,-154.59445059,0.00025723,2]
[331895471,1720819853094,-2000.0,0.00025743,2]
[331895472,1720819853104,-2000.0,0.00025752,2]
[331895473,1720819853116,-500.0,0.00025753,2]
[331895474,1720819853126,-500.0,0.00025753,2]
[331895475,1720819853136,-500.0,0.00025753,2]
[331895476,1720819853146,-500.0,0.00025753,2]
[331895477,1720819853156,-500.0,0.00025753,2]
[331895478,1720819853166,-500.0,0.00025753,2]
[331895479,1720819853177,-500.0,0.00025753,2]
[331895480,1720819853188,-159.04622291,0.00025753,2]
[331895481,1720819853198,-500.0,0.00025753,2]
[331895482,1720819853207,-500.0,0.00025753,2]
[331895483,1720819853216,-500.0,0.00025753,2]
[331895484,1720819853227,-500.0,0.00025753,2]
[331895485,1720819853237,-500.0,0.00025753,2]
[331895486,1720819853246,-500.0,0.00025753,2]
[331895487,1720819853256,-500.0,0.00025753,2]
[331895488,1720819853266,-500.0,0.00025753,2]
[331895489,1720819853277,-500.0,0.00025753,2]
[331895490,1720819853288,-500.0,0.00025753,2]
[331895491,1720819853300,-500.0,0.00025753,2]
[331895492,1720819853309,-500.0,0.00025753,2]
[331895493,1720819853319,-1500.0,0.00025753,2]
[331895494,1720819853489,-576.7,0.00025753,2]
[331895495,1720819853499,-200.0,0.00025753,7]
[331895496,1720819853508,-500.0,0.00025753,2]
[331895497,1720819853518,-500.0,0.00025753,2]
[331895498,1720819853527,-587.64838617,0.00025753,2]
[331895499,1720819853538,-500.0,0.00025753,2]
[331895500,1720819853548,-500.0,0.00025753,2]
[331895501,1720819853559,-500.0,0.00025753,2]
[331895502,1720819853569,-1165.96,0.00025753,2]
[331895503,1720819853579,-500.0,0.00025753,2]
[331895504,1720819853589,-500.0,0.00025753,2]
[331895505,1720819853599,-500.0,0.00025753,2]
[331895506,1720819853609,-500.0,0.00025753,2]
[331895507,1720819853620,-500.0,0.00025753,2]
[331895508,1720819853631,-500.0,0.00025753,2]
[331895509,1720819853640,-500.0,0.00025753,2]
[331895510,1720819853650,-500.0,0.00025753,2]
[331895511,1720819853663,-500.0,0.00025753,2]
[331895512,1720819853672,-500.0,0.00025753,2]
[331895513,1720819853682,-500.0,0.00025753,2]
[331895514,1720819853703,-500.0,0.00025753,2]
[331895515,1720819853715,-500.0,0.00025753,2]
[331895516,1720819853726,-500.0,0.00025753,2]
[331895517,1720819853737,-500.0,0.00025753,2]
[331895518,1720819853748,-500.0,0.00025753,2]
[331895519,1720819853758,-500.0,0.00025753,2]
[331895520,1720819853770,-500.0,0.00025753,2]
[331895521,1720819853781,-345.82194898,0.00025753,2]
[331895522,1720819853792,-500.0,0.00025753,2]
[331895523,1720819853803,-1565.92,0.00025753,2]
[331895524,1720819853813,-500.0,0.00025753,2]
[331895525,1720819853823,-500.0,0.00025753,2]
[331895526,1720819853833,-500.0,0.00025753,2]
[331895527,1720819853844,-500.0,0.00025753,2]
[331895528,1720819853855,-500.0,0.00025753,2]
[331895529,1720819853866,-500.0,0.00025753,2]
[331895530,1720819853876,-579.27837627,0.00025753,2]
[331895531,1720819853887,-500.0,0.00025753,2]
[331895532,1720819853897,-500.0,0.00025753,2]
[331895533,1720819853907,-151.0,0.00025753,7]
[331895534,1720819853917,-500.0,0.00025753,2]
[331895535,1720819853927,-500.0,0.00025753,2]
[331895536,1720819853937,-512.16,0.00025753,2]
[331895537,1720819853947,-500.0,0.00025753,2]
[331895538,1720819853958,-500.0,0.00025753,2]
[331895539,1720819853968,-801.12,0.00025753,2]
[331895540,1720819853983,-500.0,0.00025753,2]
[331895541,1720819853994,-500.0,0.00025753,2]
[331895542,1720819854004,-500.0,0.00025753,2]
[331895543,1720819854015,-500.0,0.00025753,2]
[331895544,1720819854025,-151.0,0.00025753,2]
[331895545,1720819854035,-500.0,0.00025753,2]
[331895546,1720819854046,-500.0,0.00025753,2]
[331895547,1720819854060,-500.0,0.00025753,2]
[331895548,1720819854071,-500.0,0.00025753,2]
[331895549,1720819854080,-500.0,0.00025753,2]
[331895550,1720819854091,-500.0,0.00025753,2]
[331895551,1720819854101,-500.0,0.00025753,2]
[331895552,1720819854110,-500.0,0.00025753,2]
[331895553,1720819854121,-309.51322765,0.00025753,2]
[331895554,1720819854130,-500.0,0.00025753,2]
[331895555,1720819854141,-151.0,0.00025753,7]
[331895556,1720819854151,-241.19759989,0.00025753,2]
[331895557,1720819854160,-500.0,0.00025753,2]
[331895558,1720819854170,-500.0,0.00025753,2]
[331895559,1720819854180,-634.69,0.00025753,2]
[331895560,1720819854190,-500.0,0.00025753,2]
[331895561,1720819854199,-500.0,0.00025753,2]
[331895562,1720819854210,-500.0,0.00025753,2]
[331895563,1720819854219,-500.0,0.00025753,2]
[331895564,1720819854229,-500.0,0.00025753,2]
[331895565,1720819854239,-520.85,0.00025753,2]
[331895566,1720819854249,-500.0,0.00025753,2]
[331895567,1720819854259,-500.0,0.00025753,2]
[331895568,1720819854268,-500.0,0.00025753,2]
[331895569,1720819854278,-500.0,0.00025753,2]
[331895570,1720819854289,-500.0,0.00025753,2]
[331895571,1720819854299,-539.39014956,0.00025753,2]
[331895572,1720819854309,-500.0,0.00025753,2]
[331895573,1720819854319,-500.0,0.00025753,2]
[331895574,1720819854330,-500.0,0.00025753,2]
[331895575,1720819854341,-500.0,0.00025753,2]
[331895576,1720819854353,-500.0,0.00025753,2]
[331895577,1720819854363,-500.0,0.00025753,2]
[331895578,1720819854374,-500.0,0.00025753,2]
[331895579,1720819854385,-631.18,0.00025753,2]
[331895580,1720819854395,-500.0,0.00025753,2]
[331895581,1720819854407,-500.0,0.00025753,2]
[331895582,1720819854417,-500.0,0.00025753,2]
[331895583,1720819854427,-500.0,0.00025753,2]
[331895584,1720819854437,-500.0,0.00025753,2]
[331895585,1720819854447,-557.83,0.00025753,2]
[331895586,1720819854458,-649.95,0.00025753,2]
[331895587,1720819854469,-500.0,0.00025753,2]
[331895588,1720819854479,-500.0,0.00025753,2]
[331895589,1720819854489,-500.0,0.00025753,2]
[331895590,1720819854500,-500.0,0.00025753,2]
[331895591,1720819854510,-151.0,0.00025753,7]
[331895592,1720819854520,-500.0,0.00025753,2]
[331895593,1720819854533,-500.0,0.00025753,2]
[331895594,1720819854544,-516.96,0.00025753,2]
[331895595,1720819854554,-545.13,0.00025753,2]
[331895596,1720819854565,-500.0,0.00025753,2]
[331895597,1720819854575,-500.0,0.00025753,2]
[331895598,1720819854585,-500.0,0.00025753,2]
[331895599,1720819854596,-355.61165991,0.00025753,2]
[331895600,1720819854606,-500.0,0.00025753,2]
[331895601,1720819854616,-500.0,0.00025753,2]
[331895602,1720819854626,-876.04,0.00025753,2]
[331895603,1720819854635,-500.0,0.00025753,2]
[331895604,1720819854645,-500.0,0.00025753,2]
[331895605,1720819854655,-500.0,0.00025753,2]
[331895606,1720819854665,-500.0,0.00025753,2]
[331895607,1720819854675,-500.0,0.00025753,2]
[331895608,1720819854685,-500.0,0.00025753,2]
[331895609,1720819854695,-500.0,0.00025753,2]
[331895610,1720819854705,-389.51750852,0.00025753,2]
[331895611,1720819854715,-500.0,0.00025753,2]
[331895612,1720819854724,-500.0,0.00025753,2]
[331895613,1720819854734,-500.0,0.00025753,2]
[331895614,1720819854743,-500.0,0.00025753,2]
[331895615,1720819854753,-500.0,0.00025753,2]
[331895616,1720819854763,-500.0,0.00025753,2]
[331895617,1720819854773,-500.0,0.00025753,2]
[331895618,1720819854782,-500.0,0.00025753,2]
[331895619,1720819854791,-151.0,0.00025753,7]
[331895620,1720819854801,-500.0,0.00025753,2]
[331895621,1720819854811,-500.0,0.00025753,2]
[331895622,1720819854821,-500.0,0.00025753,2]
[331895623,1720819854831,-1219.24,0.00025753,2]
[331895624,1720819854840,-500.0,0.00025753,2]
[331895625,1720819854850,-500.0,0.00025753,2]
[331895626,1720819854860,-500.0,0.00025753,2]
[331895627,1720819854870,-500.0,0.00025753,2]
[331895628,1720819854882,-500.0,0.00025753,2]
[331895629,1720819854892,-500.0,0.00025753,2]
[331895630,1720819854901,-500.0,0.00025753,2]
[331895631,1720819854912,-500.0,0.00025753,2]
[331895632,1720819854922,-500.0,0.00025753,2]
[331895633,1720819854932,-500.0,0.00025753,2]
[331895634,1720819854943,-579.09,0.00025753,2]
[331895635,1720819854953,-500.0,0.00025753,2]
[331895636,1720819854963,-500.0,0.00025753,2]
[331895637,1720819854976,-500.0,0.00025753,2]
[331895638,1720819854987,-500.0,0.00025753,2]
[331895639,1720819854998,-500.0,0.00025753,2]
[331895640,1720819855008,-500.0,0.00025753,2]
[331895641,1720819855019,-500.0,0.00025753,2]
[331895642,1720819855028,-500.0,0.00025753,2]
[331895643,1720819855039,-500.0,0.00025753,2]
[331895644,1720819855056,-616.01,0.00025753,2]
[331895645,1720819855069,-2714.65,0.00025753,2]
[331895646,1720819855080,-303.1387691,0.00025753,2]
[331895647,1720819855090,-601.25,0.00025753,2]
[331895648,1720819855102,-500.0,0.00025753,2]
[331895649,1720819855112,-698.03,0.00025753,2]
[331895650,1720819855122,-500.0,0.00025753,2]
[331895651,1720819855132,-500.0,0.00025753,2]
[331895652,1720819855141,-500.0,0.00025753,2]
[331895653,1720819855150,-500.0,0.00025753,2]
[331895654,1720819855160,-151.0,0.00025753,7]
[331895655,1720819855169,-500.0,0.00025753,2]
[331895656,1720819855179,-500.0,0.00025753,2]
[331895657,1720819855188,-705.34,0.00025753,2]
[331895658,1720819855198,-534.06,0.00025753,2]
[331895659,1720819855207,-500.0,0.00025753,2]
[331895660,1720819855217,-500.0,0.00025753,2]
[331895661,1720819855226,-500.0,0.00025753,2]
[331895662,1720819855236,-500.0,0.00025753,2]
[331895663,1720819855245,-500.0,0.00025753,2]
[331895664,1720819855255,-500.0,0.00025753,2]
[331895665,1720819855265,-500.0,0.00025753,2]
[331895666,1720819855275,-1249.1,0.00025753,2]
[331895667,1720819855284,-500.0,0.00025753,2]
[331895668,1720819855293,-500.0,0.00025753,2]
[331895669,1720819855303,-500.0,0.00025753,2]
[331895670,1720819855312,-500.0,0.00025753,2]
[331895671,1720819855322,-500.0,0.00025753,2]
[331895672,1720819855332,-500.0,0.00025753,2]
[331895673,1720819855342,-561.53,0.00025753,2]
[331895674,1720819855351,-500.0,0.00025753,2]
[331895675,1720819855361,-500.0,0.00025753,2]
[331895676,1720819855370,-500.0,0.00025753,2]
[331895677,1720819855379,-500.0,0.00025753,2]
[331895678,1720819855388,-500.0,0.00025753,2]
[331895679,1720819855398,-500.0,0.00025753,2]
[331895680,1720819855407,-733.41,0.00025753,2]
[331895681,1720819855417,-500.0,0.00025753,2]
[331895682,1720819855427,-500.0,0.00025753,2]
[331895683,1720819855436,-500.0,0.00025753,2]
[331895684,1720819855446,-500.0,0.00025753,2]
[331895685,1720819855455,-653.32,0.00025753,2]
[331895686,1720819855465,-500.0,0.00025753,2]
[331895687,1720819855479,-500.0,0.00025753,2]
[331895688,1720819855488,-514.56813144,0.00025753,2]
[331895689,1720819855498,-44191.91,0.00025753,2]
[331895690,1720819855507,-499.53117937,0.00025753,2]
[331895691,1720819855517,-802.0,0.00025753,2]
[331895692,1720819855527,-500.0,0.00025753,2]
[331895693,1720819855537,-500.0,0.00025753,2]
[331895694,1720819855546,-500.0,0.00025753,2]
[331895695,1720819855555,-500.0,0.00025753,2]
[331895696,1720819855565,-500.0,0.00025753,2]
[331895697,1720819855574,-500.0,0.00025753,2]
[331895698,1720819855584,-500.0,0.00025753,2]
[331895699,1720819855593,-500.0,0.00025753,2]
[331895700,1720819855603,-500.0,0.00025753,2]
[331895701,1720819855612,-500.0,0.00025753,2]
[331895702,1720819855621,-500.0,0.00025753,2]
[331895703,1720819855631,-500.0,0.00025753,2]
[331895704,1720819855641,-500.0,0.00025753,2]
[331895705,1720819855650,-500.0,0.00025753,2]
[331895706,1720819855660,-500.0,0.00025753,2]
[331895707,1720819855670,-500.0,0.00025753,2]
[331895708,1720819855679,-500.0,0.00025753,2]
[331895709,1720819855688,-578.61302388,0.00025753,2]
[331895710,1720819855697,-500.0,0.00025753,2]
[331895711,1720819855707,-500.0,0.00025753,2]
[331895712,1720819855716,-500.0,0.00025753,2]
[331895713,1720819855725,-500.0,0.00025753,2]
[331895714,1720819855734,-559.92702978,0.00025753,2]
[331895715,1720819855743,-589.13,0.00025753,2]
[331895716,1720819855753,-500.0,0.00025753,2]
[331895717,1720819855762,-500.0,0.00025753,2]
[331895718,1720819855771,-764.09,0.00025753,2]
[331895719,1720819855780,-5740.2,0.00025753,2]
[331895720,1720819855790,-1197.91,0.00025753,2]
[331895721,1720819855800,-500.0,0.00025753,2]
[331895722,1720819855811,-151.0,0.00025753,7]
[331895723,1720819855820,-500.0,0.00025753,2]
[331895724,1720819855830,-500.0,0.00025753,2]
[331895725,1720819855840,-500.0,0.00025753,2]
[331895726,1720819855850,-500.0,0.00025753,2]
[331895727,1720819855860,-500.0,0.00025753,2]
[331895728,1720819855869,-500.0,0.00025753,2]
[331895729,1720819855878,-3045.02,0.00025753,2]
[331895730,1720819855888,-548.38,0.00025753,2]
[331895731,1720819855898,-500.0,0.00025753,2]
[331895732,1720819855908,-500.0,0.00025753,2]
[331895733,1720819855918,-500.0,0.00025753,2]
[331895734,1720819855927,-500.0,0.00025753,2]
[331895735,1720819855937,-2000.0,0.00025761,2]
[331895736,1720819855947,-150.42453828,0.00025829,2]
[331895737,1720819855957,-154.69833824,0.00025869,2]
[331895738,1720819855966,-473.61680392,0.00025869,2]
[331895739,1720819855981,-154.68290005,0.00025869,2]
[331895740,1720819855991,-154.59445059,0.00025871,2]
[331895741,1720819856000,-150.79426912,0.00025883,2]
[331895742,1720819856010,-153.29155785,0.00025897,2]
[331895743,1720819856019,-210.68826157,0.00025902,2]
[331895744,1720819856031,-403.7518777,0.00025902,2]
[331895745,1720819856040,-180.0289481,0.00025902,2]
[331895746,1720819856050,-158.32455808,0.00025902,2]
[331895747,1720819856063,-150.42453828,0.00025917,2]
[331895748,1720819856071,-153.29155785,0.00025931,2]
[331895749,1720819856083,-152.71751146,0.00025936,2]
[331895750,1720819856093,-659.31259948,0.00025948,2]
[331895751,1720819856103,-152.71751146,0.00025953,2]
[331895752,1720819856112,-612.00406914,0.00025964,2]
[331895753,1720819856121,-151.0,0.00025997,2]
[331895754,1720819856131,-151.0,0.00025997,2]
[331895755,1720819856140,-4020.63000465,0.00026,2]
[331895756,1720819856150,-273342.33384382,0.00026,2]
[331895757,1720819856159,-2500.0,0.00026,2]
[331895758,1720819856169,-189.34947455,0.00026,2]
[331895759,1720819856179,-374.0,0.00026,2]
[331895760,1720819856188,-151.0,0.00026,7]
[331895761,1720819856198,-490.01759233,0.00026,2]
[331895762,1720819856208,-151.0,0.00026,7]
[331895763,1720819856218,-748.0,0.00026,2]
[331895764,1720819856227,-748.0,0.00026,2]
[331895765,1720819856237,-151.0,0.00026,7]
[331895766,1720819856246,-154.74847446,0.00026,2]
[331895767,1720819856256,-240.45153,0.00026,7]
[331895768,1720819856266,-760.76,0.00026017,3]
[331895769,1720819856276,-380.38,0.00026017,3]
[331895770,1720819856286,-10.52325891,0.00026027,2]
[331895771,1720819856841,-381.66205368,0.00021917,2]
[331895772,1720819856957,-21.0696923,0.00021917,2]
[331895773,1720819856967,-187.84280407,0.0002243,2]
[331895774,1720819856981,-396.68773911,0.00024657,2]
[331895775,1720819856990,-500.0,0.00025753,2]
[331895776,1720819857000,-489.47674109,0.00026027,2]
[331895777,1720819857010,-500.0,0.00026027,2]
[331895778,1720819857020,-500.0,0.00026027,2]
[331895779,1720819857029,-500.0,0.00026027,2]
[331895780,1720819857039,-500.0,0.00026027,2]
[331895781,1720819857049,-158.75537633,0.00026027,2]
[331895782,1720819857213,-458.17298887,0.00024657,2]
[331895783,1720820049051,350.67871505,0.00016255,2]
[331895824,1720820320005,330.76974938,0.00016255,2]
[331895825,1720820320036,563.759554,0.00016255,2]
[331895826,1720820320066,55.62388512,0.00016255,2]
[331895827,1720820371278,-200.0,0.00024657,7]
[331895828,1720820371330,-200.0,0.00024931,7]
[331895829,1720820371363,-200.0,0.00025205,7]
[331895830,1720820371398,-200.0,0.00025479,7]
[331895831,1720820371432,-201.73575072,0.00025753,7]
[331895832,1720820371462,-151.0,0.00026027,7]
[331895833,1720820371492,-151.0,0.00026027,7]
[331895834,1720820371517,-104.26424928,0.00026027,7]
[331895835,1720820371600,-592.21626372,0.00026027,7]
[331895836,1720820371624,-151.0,0.00026027,7]
[331895837,1720820371648,-696.480513,0.00026027,7]
[331895838,1720820371674,-151.0,0.00026027,7]
[331895839,1720820371696,-151.0,0.00026027,7]
[331895840,1720820371785,-151.0,0.00026301,7]
[331895841,1720820371812,-151.0,0.00026301,7]
[331895842,1720820371833,-152.0,0.00026301,7]
[331895843,1720820371855,-151.0,0.00026301,7]
[331895844,1720820371877,-151.0,0.00026301,7]
[331895845,1720820371899,-151.0,0.00026301,7]
[331895846,1720820371922,-151.0,0.00026301,7]
[331895847,1720820371946,-151.0,0.00026301,7]
[331895848,1720820371969,-696.480513,0.00026301,7]
[331895849,1720820371991,-151.0,0.00026301,7]
[331895850,1720820372016,-696.480513,0.00026301,7]
[331895851,1720820372039,-229.265118,0.00026301,7]
[331895852,1720820372064,-138.448302,0.00026301,7]
[331895853,1720820372165,-12.551698,0.00026301,7]
[331895854,1720820372193,-151.0,0.00026575,7]
[331895855,1720820372220,-138.448302,0.00026575,7]
[331895856,1720820372412,-170.77,0.000266,31]
[331895857,1720820372449,-168.957575,0.00027123,49]
[331895858,1720820372472,-168.957575,0.00027123,72]
[331895859,1720820372494,-168.957575,0.00027123,96]
[331895860,1720820372520,-168.957575,0.00027123,120]
[331895861,1720820372554,-153.3997,0.00027397,120]
[331895862,1720820372942,-26.063668,0.00027397,120]
[331895863,1720820372978,-423.936332,0.00028,120]
[331895864,1720820373076,-12.551698,0.00026575,7]
[331895865,1720820373101,-151.0,0.00026575,7]
[331895866,1720820373126,-151.0,0.00026575,7]
[331895867,1720820373152,-151.0,0.00026575,7]
[331895868,1720820373177,-151.0,0.00026575,7]
[331895869,1720820373202,-151.0,0.000266,7]
[331895870,1720820373226,-151.0,0.000266,7]
[331895871,1720820373249,-151.0,0.000266,7]
[331895872,1720820373274,-151.0,0.000266,7]
[331895873,1720820373296,-240.45153,0.000266,7]
[331895874,1720820373319,-96.114264,0.0002663,7]
[331895875,1720820373580,-600.366249,0.0002663,7]
[331895876,1720820373603,-696.480513,0.0002663,7]
[331895877,1720820373629,-151.0,0.00026849,7]
[331895878,1720820373654,-151.0,0.00026849,7]
[331895879,1720820373676,-151.0,0.00026849,7]
[331895880,1720820373700,-151.0,0.00026849,7]
[331895881,1720820373722,-151.0,0.00026849,7]
[331895882,1720820373745,-151.0,0.00026849,7]
[331895883,1720820373769,-151.0,0.00026849,7]
[331895884,1720820373792,-151.0,0.00026849,7]
[331895885,1720820373813,-151.0,0.00026849,7]
[331895886,1720820373835,-151.0,0.00026849,7]
[331895887,1720820373860,-696.480513,0.00026849,7]
[331895888,1720820373883,-217.71342,0.00026849,7]
[331895889,1720820373905,-696.480513,0.00026849,7]
[331895890,1720820373927,-151.0,0.00026849,7]
[331895891,1720820373950,-151.0,0.00026849,7]
[331895892,1720820373972,-886.09134707,0.00027,15]
[331895893,1720820373996,-151.0,0.00027123,7]
[331895894,1720820374023,-151.0,0.00027123,7]
[331895895,1720820374046,-151.0,0.00027123,7]
[331895896,1720820374069,-151.0,0.00027123,7]
[331895897,1720820374093,-151.0,0.00027123,7]
[331895898,1720820374119,-151.0,0.00027123,7]
[331895899,1720820374144,-151.0,0.00027123,7]
[331895900,1720820374168,-151.0,0.00027123,7]
[331895901,1720820374196,-168.957575,0.00027123,25]
[331895902,1720820374223,-151.0,0.00027397,7]
[331895903,1720820374247,-170.006189,0.00027397,7]
[331895905,1720820374274,-151.0,0.00027397,7]
[331895906,1720820374296,-151.0,0.00027397,7]
[331895907,1720820374319,-151.0,0.00027397,7]
[331895908,1720820374342,-151.0,0.00027397,7]
[331895909,1720820374372,-193.782873,0.00027397,7]
[331895910,1720820374395,-151.0,0.00027397,7]
[331895911,1720820374419,-696.480513,0.00027397,7]
[331895912,1720820374442,-696.480513,0.00027397,7]
[331895913,1720820374468,-151.0,0.00027671,7]
[331895914,1720820374493,-696.480513,0.00027671,7]
[331895915,1720820374516,-696.480513,0.00027671,7]
[331895916,1720820374542,-224.295487,0.00027945,7]
[331895917,1720820374563,-151.0,0.00027945,7]
[331895918,1720820374586,-151.0,0.00027945,7]
[331895919,1720820374608,-151.0,0.00027945,7]
[331895920,1720820374634,-696.480513,0.00027975,7]
[331895921,1720820374656,-696.480513,0.00027975,7]
[331895922,1720820374678,-340.02061465,0.00028,30]
[331895923,1720820374700,-576.063668,0.00028,120]
[331895924,1720820374729,-151.0,0.00028493,7]
[331895925,1720820374752,-151.0,0.00028493,7]
[331895926,1720820374775,-151.0,0.00028493,7]
[331895927,1720820374800,-696.480513,0.00028493,7]
[331895928,1720820374823,-696.480513,0.00028493,7]
[331895929,1720820374851,-285.44584,0.0002877,7]
[331895930,1720820374873,-151.0,0.0002877,7]
[331895931,1720820374896,-696.480513,0.0002877,7]
[331895932,1720820374919,-696.480513,0.0002877,7]
[331895933,1720820374943,-1000.0,0.00029,29]
[331895934,1720820374975,-170.77,0.000295,31]
[331895935,1720820374997,-160.0,0.00029585,7]
[331895936,1720820375022,-164.156472,0.00029589,7]
[331895937,1720820375046,-696.480513,0.00029589,7]
[331895938,1720820375068,-696.480507,0.00029589,7]
[331895939,1720820375092,-250.44867417,0.000298,120]
[331895940,1720820375120,-160.0,0.00029884,8]
[331895941,1720820375143,-0.01199443,0.0003,30]
[331895942,1720820375164,-23188.45111667,0.0003,7]
[331895943,1720820375505,-571.20379786,0.0003,7]
[331895944,1720820375682,-571.20379786,0.0003,7]
[331895945,1720820375859,-1000.0,0.0003,120]
[331895946,1720820375882,-450.0,0.0003,120]
[331895947,1720820375916,-1000.0,0.00032,120]
[331895948,1720820375942,-13311.0,0.000338,120]
[331895949,1720820376377,-907.36741084,0.0003,30]
[331895950,1720820376400,-8354.26106855,0.0003,30]
[331895951,1720820388404,-6796.92689465,0.0003,7]
[331895952,1720820438798,151.0,0.00026027,7]
[331895953,1720820439106,151.0,0.00026301,7]
[331895960,1720820529018,210.91370484,0.00016255,2]
[331895961,1720820529050,126.00030731,0.00016255,2]
[331895962,1720820538152,151.0,0.00025753,7]
[331895963,1720820539023,318.73144129,0.00016255,2]
[331895964,1720820547550,598.40144196,0.00016255,2]
[331895965,1720820549756,151.0,0.00025753,7]
[331895966,1720820550070,151.0,0.00026301,7]
[331895967,1720820626825,170.8,0.000266,31]
[331895968,1720820720595,403.7518777,0.00016255,2]
[331895969,1720820733606,403.7518777,0.00016255,2]
[331895971,1720820759329,154.60575532,0.00016255,2]
[331895972,1720820772722,195.97964944,0.00016255,2]
[331895973,1720820774316,154.60575532,0.00016255,2]
[331895974,1720820786110,383.94934095,0.00016255,2]
[331895976,1720820843119,-191.24213208,0.00018798,2]
[331895977,1720820843140,-321.24126946,0.00018899,2]
[331895978,1720820843162,-197.41006228,0.00019039,2]
[331895979,1720820843182,-195.28791792,0.00019703,2]
[331895980,1720820843203,-212.98035589,0.00019703,2]
[331895981,1720820843226,-397.037784,0.00021096,2]
[331895982,1720820843248,-200.645341,0.00021096,2]
[331895983,1720820843270,-702.96365637,0.00024557,2]
[331895985,1720820882662,89.45153,0.00016,10]
[331895986,1720820882686,770.54847,0.00016,10]
[331895987,1720820959130,-331.4718625,0.00019394,2]
[331896073,1720821038942,-158.32455808,0.00023455,2]
[331896075,1720821038952,-275.36317654,0.00023455,2]
[331896077,1720821038961,-918.4190682,0.00023507,2]
[331896079,1720821038971,-154.69833824,0.00023968,2]
[331896081,1720821038980,-155.14626466,0.00024481,2]
[331896083,1720821038989,-154.68290005,0.00024481,2]
[331896085,1720821038998,-1284.57299837,0.00024557,2]
[331896088,1720821039009,-2241.81101874,0.00024647,2]
[331896089,1720821039018,-190.19,0.00024647,3]
[331896091,1720821039026,-570.57,0.00024647,3]
[331896093,1720821039036,-300.0,0.00024656,2]
[331896096,1720821039045,-500.0,0.00024657,2]
[331896098,1720821039054,-500.0,0.00024657,2]
[331896100,1720821039064,-500.0,0.00024657,2]
[331896102,1720821039074,-500.0,0.00024657,2]
[331896104,1720821039083,-500.0,0.00024657,2]
[331896106,1720821039093,-500.0,0.00024657,2]
[331896108,1720821039102,-500.0,0.00024657,2]
[331896110,1720821039111,-500.0,0.00024657,2]
[331896112,1720821039121,-500.0,0.00024657,2]
[331896114,1720821039130,-500.0,0.00024657,2]
[331896116,1720821039140,-500.0,0.00024657,2]
[331896118,1720821039149,-540.05567798,0.00024657,2]
[331896120,1720821039158,-500.0,0.00024657,2]
[331896122,1720821039168,-500.0,0.00024657,2]
[331896124,1720821039178,-500.0,0.00024657,2]
[331896126,1720821039187,-500.0,0.00024657,2]
[331896128,1720821039196,-500.0,0.00024657,2]
[331896130,1720821039206,-500.0,0.00024657,2]
[331896132,1720821039215,-500.0,0.00024657,2]